bitfinex-derivatives/quotes_SOLF0:USTF0_20250731
["timestamp","ask_amount","ask_price","bid_price","bid_amount"]
[1753931654505,4.20280342,180.28,180.23,1.9503553]
[1753931654706,4.20280342,180.27,180.23,1.9503553]
[1753931655007,4.20280342,180.26,180.23,1.9503553]
[1753931655203,1.9503553,180.29,180.23,1.9503553]
[1753931655406,4.20261964,180.28,180.23,1.9503553]
[1753931655609,4.20261964,180.27,180.23,1.9503553]
[1753931655809,4.20261964,180.26,180.23,1.9503553]
[1753931656012,1.9503553,180.29,180.23,1.9503553]
[1753931656212,4.20249705,180.28,180.23,1.9503553]
[1753931656411,4.20249705,180.27,180.23,1.9503553]
[1753931656614,4.20249705,180.26,180.23,1.9503553]
[1753931656811,1.9503553,180.29,180.23,1.9503553]
[1753931657014,1.9503553,180.27,180.21,1.9503553]
[1753931657218,4.20247927,180.26,180.21,1.9503553]
[1753931657416,1.9503553,180.26,180.21,1.9503553]
[1753931658417,4.20262531,180.25,180.21,1.9503553]
[1753931658611,1.9503553,180.26,180.21,1.9503553]
[1753931658816,4.20262531,180.25,180.21,1.9503553]
[1753931659018,1.9503553,180.26,180.21,1.9503553]
[1753931659216,4.20239739,180.25,180.21,1.9503553]
[1753931659418,1.9503553,180.26,180.21,1.9503553]
[1753931659621,4.202695,180.25,180.21,1.9503553]
[1753931659920,1.9503553,180.26,180.21,1.9503553]
[1753931660220,4.202695,180.25,180.21,1.9503553]
[1753931660419,1.9503553,180.26,180.21,1.9503553]
[1753931660716,4.20278734,180.25,180.21,1.9503553]
[1753931660917,4.20284294,180.24,180.21,1.9503553]
[1753931661118,1.9503553,180.26,180.21,1.9503553]
[1753931661420,4.20246967,180.25,180.21,1.9503553]
[1753931661619,4.20246967,180.24,180.21,1.9503553]
[1753931661819,1.9503553,180.26,180.21,1.9503553]
[1753931662020,4.20288881,180.25,180.21,1.9503553]
[1753931662219,4.20288881,180.24,180.21,1.9503553]
[1753931662423,1.9503553,180.26,180.21,1.9503553]
[1753931662617,4.2030417,180.25,180.21,1.9503553]
[1753931662816,4.2030417,180.24,180.21,1.9503553]
[1753931663017,1.9503553,180.26,180.21,1.9503553]
[1753931663219,4.20275549,180.25,180.21,1.9503553]
[1753931663417,4.20275549,180.24,180.21,1.9503553]
[1753931663620,1.9503553,180.26,180.21,1.9503553]
[1753931663917,4.20330474,180.25,180.22,1.9503553]
[1753931664116,4.20330474,180.24,180.18,198.07457808]
[1753931664320,1.9503553,180.26,180.22,1.9503553]
[1753931664522,4.20368965,180.25,180.22,1.9503553]
[1753931664722,4.20368965,180.24,180.22,1.9503553]
[1753931665021,1.9503553,180.26,180.22,1.9503553]
[1753931665222,4.20346781,180.25,180.22,1.9503553]
[1753931665421,4.20346781,180.24,180.22,1.9503553]
[1753931665616,1.9503553,180.26,180.22,1.9503553]
[1753931665813,4.20434233,180.25,180.22,1.9503553]
[1753931666017,4.20434233,180.24,180.22,1.9503553]
[1753931666214,1.9503553,180.26,180.22,1.9503553]
[1753931666423,4.20436732,180.25,180.22,1.9503553]
[1753931666725,4.20436732,180.24,180.22,1.9503553]
[1753931666921,1.9503553,180.26,180.22,1.9503553]
[1753931667121,4.20422219,180.25,180.22,1.9503553]
[1753931667321,4.20425921,180.24,180.22,1.9503553]
[1753931667521,1.9503553,180.26,180.22,1.9503553]
[1753931667720,4.20425921,180.25,180.22,1.9503553]
[1753931667925,4.20425921,180.24,180.22,1.9503553]
[1753931668117,1.9503553,180.27,180.22,1.9503553]
[1753931668323,4.20418589,180.26,180.22,1.9503553]
[1753931668621,4.20418589,180.25,180.22,1.9503553]
[1753931668819,4.20418589,180.24,180.22,1.9503553]
[1753931669019,1.9503553,180.27,180.22,1.9503553]
[1753931669221,4.20601133,180.26,180.22,1.9503553]
[1753931669420,4.20601133,180.25,180.22,1.9503553]
[1753931669721,4.20601133,180.24,180.22,1.9503553]
[1753931670016,1.9503553,180.27,180.22,1.9503553]
[1753931670221,4.20605404,180.26,180.22,1.9503553]
[1753931670425,4.20605404,180.25,180.22,1.9503553]
[1753931670620,4.20605404,180.24,180.22,1.9503553]
[1753931670821,1.9503553,180.27,180.22,1.9503553]
[1753931671022,4.20615552,180.26,180.22,1.9503553]
[1753931671223,4.20615552,180.25,180.22,1.9503553]
[1753931671522,4.20615552,180.24,180.22,1.9503553]
[1753931671726,1.9503553,180.27,180.22,1.9503553]
[1753931671926,4.20626497,180.26,180.22,1.9503553]
[1753931672126,4.20626497,180.25,180.22,1.9503553]
[1753931672330,4.20626497,180.24,180.22,1.9503553]
[1753931672528,1.9503553,180.27,180.22,1.9503553]
[1753931672718,4.20641922,180.26,180.22,1.9503553]
[1753931672923,4.20641922,180.25,180.22,1.9503553]
[1753931673119,4.20641922,180.24,180.22,1.9503553]
[1753931673324,1.9503553,180.27,180.22,1.9503553]
[1753931673524,4.20723597,180.26,180.22,1.9503553]
[1753931673725,4.20723597,180.25,180.22,1.9503553]
[1753931674025,4.20723597,180.24,180.18,198.07457808]
[1753931674227,1.9503553,180.27,180.18,198.07457808]
[1753931674228,1.9503553,180.25,180.21,1.9503553]
[1753931674423,4.20775957,180.24,180.21,1.9503553]
[1753931674627,1.9503553,180.25,180.21,1.9503553]
[1753931674828,4.20790483,180.24,180.18,198.07457808]
[1753931675126,1.9503553,180.25,180.21,1.9503553]
[1753931675325,4.20787232,180.24,180.21,1.9503553]
[1753931675522,1.9503553,180.25,180.21,1.9503553]
[1753931675725,4.20846301,180.24,180.21,1.9503553]
[1753931675933,1.9503553,180.25,180.21,1.9503553]
[1753931676133,4.20846301,180.24,180.21,1.9503553]
[1753931676336,1.9503553,180.25,180.21,1.9503553]
[1753931676535,4.20902172,180.24,180.21,1.9503553]
[1753931676735,1.9503553,180.25,180.21,1.9503553]
[1753931676936,4.20902172,180.24,180.21,1.9503553]
[1753931677143,1.9503553,180.25,180.21,1.9503553]
[1753931677332,4.20900679,180.24,180.21,1.9503553]
[1753931677532,1.9503553,180.25,180.18,198.07457808]
[1753931677728,4.20954115,180.24,180.21,1.9503553]
[1753931677938,1.9503553,180.25,180.21,1.9503553]
[1753931678142,4.20954115,180.24,180.21,1.9503553]
[1753931678439,4.20994944,180.23,180.21,1.9503553]
[1753931678737,1.9503553,180.25,180.21,1.9503553]
[1753931678935,4.20994944,180.24,180.21,1.9503553]
[1753931679134,4.20994944,180.23,180.21,1.9503553]
[1753931679338,1.9503553,180.25,180.21,1.9503553]
[1753931679537,4.21043255,180.24,180.21,1.9503553]
[1753931679739,4.21043255,180.23,180.21,1.9503553]
[1753931679934,1.9503553,180.23,180.19,1.9503553]
[1753931680141,4.21081488,180.22,180.19,1.9503553]
[1753931680335,4.21103775,180.21,180.08,7.0]
[1753931680541,4.21103775,180.2,180.18,1.9503553]
[1753931680736,1.9503553,180.23,180.18,1.9503553]
[1753931680936,4.2116025,180.22,180.18,1.9503553]
[1753931681137,4.2116025,180.21,180.18,1.9503553]
[1753931681340,4.2116025,180.2,180.18,1.9503553]
[1753931681537,1.9503553,180.23,180.18,1.9503553]
[1753931681739,4.21118331,180.22,180.18,1.9503553]
[1753931681938,4.21118331,180.21,180.18,1.9503553]
[1753931682140,4.21118331,180.2,180.18,1.9503553]
[1753931682340,1.9503553,180.23,180.18,1.9503553]
[1753931682539,4.21094285,180.22,180.18,1.9503553]
[1753931682736,4.21094285,180.21,180.18,1.9503553]
[1753931682939,4.21094285,180.2,180.18,1.9503553]
[1753931683144,4.21020604,180.19,180.18,1.9503553]
[1753931683441,4.21020604,180.19,180.08,7.0]
[1753931683640,6.61433492,180.23,180.08,7.0]
[1753931683838,4.21066192,180.22,180.18,1.9503553]
[1753931684038,4.21066192,180.21,180.18,1.9503553]
[1753931684239,4.21066192,180.2,180.18,1.9503553]
[1753931684539,4.21066192,180.19,180.18,1.9503553]
[1753931685139,1.9503553,180.23,180.18,1.9503553]
[1753931685338,4.20901745,180.22,180.18,1.9503553]
[1753931685636,4.20901745,180.21,180.18,1.9503553]
[1753931685832,4.20901745,180.2,180.18,1.9503553]
[1753931686034,4.20901745,180.19,180.18,1.9503553]
[1753931688243,4.20901745,180.19,180.17,1.9503553]
[1753931688443,1.9503553,180.21,180.17,1.9503553]
[1753931688644,4.20666754,180.2,180.08,7.0]
[1753931688840,6.15702284,180.19,180.13,1.9503553]
[1753931689138,4.20666754,180.18,180.13,1.9503553]
[1753931690344,4.20666754,180.18,180.01,7.0]
[1753931690545,1.9503553,180.17,180.13,1.9503553]
[1753931692140,1.9503553,180.17,180.01,7.0]
[1753931692345,1.9503553,180.17,180.13,1.9503553]
[1753931693343,1.9503553,180.17,180.11,1.9503553]
[1753931693538,1.9503553,180.15,180.11,1.9503553]
[1753931693746,1.9503553,180.15,180.1,1.9503553]
[1753931694744,4.66397962,180.21,180.1,1.9503553]
[1753931694948,1.9503553,180.16,180.1,1.9503553]
[1753931696847,1.9503553,180.16,180.11,1.9503553]
[1753931698655,1.9503553,180.16,180.1,1.9503553]
[1753931699653,1.9503553,180.16,180.01,7.0]
[1753931699852,1.9503553,180.16,180.1,1.9503553]
[1753931702653,4.65532975,180.2,180.1,1.9503553]
[1753931702855,1.9503553,180.15,180.1,1.9503553]
[1753931705960,4.65532975,180.21,180.1,1.9503553]
[1753931706261,1.9503553,180.16,180.1,1.9503553]
[1753931707660,4.65532975,180.21,180.1,1.9503553]
[1753931707860,1.9503553,180.16,180.1,1.9503553]
[1753931711963,4.65532975,180.21,180.1,1.9503553]
[1753931712165,1.9503553,180.15,180.01,7.0]
[1753931712366,1.9503553,180.15,180.1,1.9503553]
[1753931713562,1.9503553,180.15,180.01,7.0]
[1753931713862,1.9503553,180.15,180.1,1.9503553]
[1753931714566,9.35820902,180.25,180.1,1.9503553]
[1753931714567,1.9503553,180.13,180.1,1.9503553]
[1753931716870,1.9503553,180.13,180.09,1.9503553]
[1753931721771,1.9503553,180.13,180.01,7.0]
[1753931722273,1.9503553,180.13,180.08,1.9503553]
[1753931725775,1.9503553,180.13,179.98,298.39437787]
[1753931725973,1.9503553,180.13,180.07,1.9503553]
[1753931726277,4.21151723,180.12,180.07,1.9503553]
[1753931726473,1.9503553,180.13,180.07,1.9503553]
[1753931726673,4.211425,180.12,180.07,1.9503553]
[1753931726874,1.9503553,180.13,180.07,1.9503553]
[1753931727073,4.211425,180.12,180.07,1.9503553]
[1753931727272,1.9503553,180.13,180.07,1.9503553]
[1753931727471,4.65532975,180.16,180.07,1.9503553]
[1753931727472,1.9503553,180.11,180.07,1.9503553]
[1753931727872,1.9503553,180.11,179.98,298.39437787]
[1753931728068,1.9503553,180.11,180.07,1.9503553]
[1753931728274,4.65532975,180.16,180.07,1.9503553]
[1753931728474,1.9503553,180.12,180.07,1.9503553]
[1753931728669,1.9503553,180.12,179.98,298.39437787]
[1753931728869,1.9503553,180.12,180.08,1.9503553]
[1753931729375,1.9503553,180.12,179.98,298.39437787]
[1753931729577,4.21409298,180.11,179.98,298.39437787]
[1753931729776,1.9503553,180.12,180.08,1.9503553]
[1753931729973,4.21409298,180.11,180.08,1.9503553]
[1753931730174,1.9503553,180.12,180.08,1.9503553]
[1753931730373,4.21507367,180.11,180.08,1.9503553]
[1753931730574,1.9503553,180.12,180.08,1.9503553]
[1753931730767,4.21507367,180.11,180.08,1.9503553]
[1753931730970,1.9503553,180.12,180.08,1.9503553]
[1753931731170,4.21507367,180.11,180.08,1.9503553]
[1753931731370,1.9503553,180.12,180.08,1.9503553]
[1753931731667,4.21584201,180.11,180.08,1.9503553]
[1753931731866,1.9503553,180.12,180.08,1.9503553]
[1753931732074,4.21584201,180.11,180.08,1.9503553]
[1753931732279,1.9503553,180.12,180.08,1.9503553]
[1753931732468,4.21661567,180.11,180.08,1.9503553]
[1753931732672,1.9503553,180.12,180.08,1.9503553]
[1753931732873,4.21647002,180.11,179.98,298.39437787]
[1753931733075,1.9503553,180.12,180.07,1.9503553]
[1753931733277,4.21767566,180.11,180.07,1.9503553]
[1753931733473,1.9503553,180.12,180.07,1.9503553]
[1753931733674,4.21755928,180.11,180.07,1.9503553]
[1753931733875,1.9503553,180.12,180.07,1.9503553]
[1753931734078,4.21755928,180.11,180.07,1.9503553]
[1753931734275,1.9503553,180.12,180.07,1.9503553]
[1753931734488,4.21801807,180.11,180.07,1.9503553]
[1753931734680,1.9503553,180.12,180.07,1.9503553]
[1753931734881,4.21801807,180.11,180.07,1.9503553]
[1753931735077,1.9503553,180.12,180.07,1.9503553]
[1753931735282,4.21864255,180.11,180.07,1.9503553]
[1753931735478,1.9503553,180.12,180.07,1.9503553]
[1753931735786,4.21855399,180.11,180.07,1.9503553]
[1753931735986,1.9503553,180.12,180.07,1.9503553]
[1753931736188,4.21855399,180.11,180.07,1.9503553]
[1753931736387,1.9503553,180.12,180.07,1.9503553]
[1753931736587,4.21905964,180.11,180.06,1.9503553]
[1753931736788,6.16941494,180.1,180.06,1.9503553]
[1753931737087,4.21905964,180.09,180.06,1.9503553]
[1753931745793,4.21905964,180.08,180.06,1.9503553]
[1753931745994,1.9503553,180.12,180.06,1.9503553]
[1753931746193,4.21719359,180.11,180.06,1.9503553]
[1753931746395,4.21719359,180.1,180.06,1.9503553]
[1753931746692,4.21719359,180.09,180.06,1.9503553]
[1753931746894,4.21719359,180.08,180.06,1.9503553]
[1753931747094,1.9503553,180.12,180.06,1.9503553]
[1753931747297,4.21695785,180.11,180.06,1.9503553]
[1753931747493,4.21695785,180.1,180.06,1.9503553]
[1753931747696,4.21695785,180.09,180.06,1.9503553]
[1753931747892,4.21695785,180.08,180.06,1.9503553]
[1753931748094,4.65532975,180.13,180.06,1.9503553]
[1753931748393,6.16713144,180.12,180.06,1.9503553]
[1753931748687,4.21677614,180.11,180.06,1.9503553]
[1753931748893,4.21677614,180.1,180.08,1.9503553]
[1753931749091,4.65532975,180.13,179.98,298.39437787]
[1753931749092,1.9503553,180.14,180.09,1.9503553]
[1753931749290,4.2160087,180.13,180.11,1.9503553]
[1753931749496,4.2160087,180.12,179.98,298.39437787]
[1753931749687,4.65532975,180.15,180.11,1.9503553]
[1753931749890,8.87137455,180.15,180.11,1.9503553]
[1753931750198,4.2160448,180.14,180.11,1.9503553]
[1753931750388,4.2160448,180.15,180.11,1.9503553]
[1753931750587,4.2160448,180.14,180.11,1.9503553]
[1753931750794,4.2160448,180.13,180.11,1.9503553]
[1753931750996,4.2160448,180.12,180.11,1.9503553]
[1753931751197,4.2160448,180.15,180.11,1.9503553]
[1753931753395,4.2160448,180.15,180.13,1.9503553]
[1753931753698,4.2160448,180.14,180.13,1.9503553]
[1753931754402,4.65532975,180.19,180.13,1.9503553]
[1753931754600,4.21602185,180.18,180.15,5.53e-05]
[1753931754899,4.21602185,180.17,180.15,5.53e-05]
[1753931755100,4.21602185,180.16,180.15,5.53e-05]
[1753931755500,4.21602185,180.16,180.14,5.53e-05]
[1753931755695,4.21602185,180.15,180.14,5.53e-05]
[1753931759802,4.65532975,180.2,180.14,5.53e-05]
[1753931760102,4.21305605,180.19,180.02,12.41335294]
[1753931760305,6.60568505,180.24,180.18,5.53e-05]
[1753931760605,4.21204262,180.23,180.18,5.53e-05]
[1753931760803,4.21204262,180.22,180.18,5.53e-05]
[1753931761108,4.21204262,180.21,180.18,5.53e-05]
[1753931761304,4.21204262,180.2,180.03,19.41335294]
[1753931761506,4.65532975,180.25,180.19,1.9503553]
[1753931761807,8.86456348,180.25,180.21,5.53e-05]
[1753931762406,4.20923373,180.25,180.21,5.53e-05]
[1753931762705,6.15958903,180.24,180.21,5.53e-05]
[1753931762906,4.20923373,180.23,180.21,5.53e-05]
[1753931763107,4.20923373,180.22,180.21,5.53e-05]
[1753931763410,4.20923373,180.22,180.2,1.9503553]
[1753931763603,1.9503553,180.24,180.2,1.9503553]
[1753931763807,4.20478013,180.23,180.2,1.9503553]
[1753931764106,1.9503553,180.24,180.2,1.9503553]
[1753931764107,4.20478013,180.22,180.2,1.9503553]
[1753931764412,1.9503553,180.25,180.2,1.9503553]
[1753931764605,4.20295294,180.24,180.2,1.9503553]
[1753931764806,4.20295294,180.23,180.2,1.9503553]
[1753931765016,4.20295294,180.22,180.2,1.9503553]
[1753931765217,1.9503553,180.25,180.2,1.9503553]
[1753931765418,4.20267998,180.24,180.2,1.9503553]
[1753931765604,4.20267998,180.23,180.2,1.9503553]
[1753931765810,4.20267998,180.22,180.2,1.9503553]
[1753931766113,1.9503553,180.25,180.2,1.9503553]
[1753931766314,4.20103039,180.24,180.2,1.9503553]
[1753931766513,4.20103039,180.23,180.2,1.9503553]
[1753931766714,1.9503553,180.23,180.2,1.9503553]
[1753931766919,4.20000547,180.22,180.2,1.9503553]
[1753931767117,1.9503553,180.23,180.2,1.9503553]
[1753931769619,1.9503553,180.23,180.03,7.0]
[1753931769620,1.9503553,180.21,180.15,1.9503553]
[1753931771622,1.9503553,180.19,180.15,1.9503553]
[1753931778929,1.9503553,180.19,180.14,1.9503553]
[1753931783933,1.9503553,180.19,180.09,209.65034348]
[1753931784134,1.9503553,180.19,180.14,1.9503553]
[1753931784335,4.65532975,180.23,180.09,209.65034348]
[1753931784535,1.9503553,180.18,180.14,1.9503553]
[1753931784834,4.65532975,180.23,180.14,1.9503553]
[1753931785032,1.9503553,180.2,180.14,1.9503553]
[1753931785235,4.19822,180.19,180.14,1.9503553]
[1753931785429,1.9503553,180.2,180.14,1.9503553]
[1753931785633,4.19893599,180.19,180.14,1.9503553]
[1753931785836,1.9503553,180.2,180.14,1.9503553]
[1753931786034,4.19893599,180.19,180.16,1.9503553]
[1753931786239,1.9503553,180.21,180.18,1.9503553]
[1753931786533,4.19984952,180.2,180.18,1.9503553]
[1753931786733,1.9503553,180.21,180.18,1.9503553]
[1753931786929,4.19979165,180.2,180.18,1.9503553]
[1753931787128,1.9503553,180.21,180.18,1.9503553]
[1753931787330,48.0496447,180.1,180.09,216.65034348]
[1753931787530,1.9503553,180.21,180.09,218.60069878]
[1753931787837,4.20065714,180.2,180.16,1.9503553]
[1753931788037,1.9503553,180.21,180.16,1.9503553]
[1753931788239,4.20065714,180.2,180.16,1.9503553]
[1753931788438,1.9503553,180.21,180.16,1.9503553]
[1753931788628,4.20176017,180.2,180.16,1.9503553]
[1753931788935,1.9503553,180.21,180.16,1.9503553]
[1753931789138,4.19828352,180.2,180.16,1.9503553]
[1753931789338,1.9503553,180.21,180.16,1.9503553]
[1753931789531,4.19952802,180.2,180.16,1.9503553]
[1753931789731,1.9503553,180.21,180.16,1.9503553]
[1753931789933,4.19952815,180.2,180.16,1.9503553]
[1753931790138,1.9503553,180.21,180.16,1.9503553]
[1753931790340,4.20072196,180.2,180.16,1.9503553]
[1753931790640,4.20072196,180.19,180.16,1.9503553]
[1753931790831,1.9503553,180.19,180.14,1.9503553]
[1753931792239,4.20277477,180.18,180.14,1.9503553]
[1753931792440,1.9503553,180.19,180.14,1.9503553]
[1753931792643,4.20465834,180.18,180.14,1.9503553]
[1753931792842,1.9503553,180.19,180.09,209.65034348]
[1753931793138,4.20465834,180.18,180.14,1.9503553]
[1753931793340,1.9503553,180.19,180.14,1.9503553]
[1753931793541,4.20685998,180.18,180.14,1.9503553]
[1753931793740,1.9503553,180.19,180.14,1.9503553]
[1753931793935,1.9503553,180.17,180.14,1.9503553]
[1753931794133,4.20686112,180.16,180.14,1.9503553]
[1753931794336,4.20686112,180.16,180.12,1.9503553]
[1753931797850,4.2109944,180.15,180.12,1.9503553]
[1753931798049,1.9503553,180.17,180.11,1.9503553]
[1753931798250,4.2109944,180.16,180.11,1.9503553]
[1753931798446,4.2109944,180.15,180.11,1.9503553]
[1753931798753,1.9503553,180.17,180.11,1.9503553]
[1753931799047,1.9503553,180.15,180.11,1.9503553]
[1753931799251,4.21219158,180.14,180.11,1.9503553]
[1753931799450,1.9503553,180.15,180.11,1.9503553]
[1753931799650,4.21208491,180.14,180.11,1.9503553]
[1753931799847,4.21219645,180.13,180.11,1.9503553]
[1753931800051,4.21219645,180.12,180.11,1.9503553]
[1753931801655,4.21219645,180.12,180.1,1.9503553]
[1753931801844,1.9503553,180.15,180.1,1.9503553]
[1753931802042,4.21071465,180.14,180.1,1.9503553]
[1753931802251,4.21071465,180.13,180.1,1.9503553]
[1753931802450,1.9503553,180.15,180.1,1.9503553]
[1753931802649,1.9503553,180.13,180.1,1.9503553]
[1753931802849,4.20999245,180.12,180.08,1.9503553]
[1753931803049,1.9503553,180.13,180.08,1.9503553]
[1753931803251,4.21013787,180.12,180.08,1.9503553]
[1753931803451,1.9503553,180.13,180.08,1.9503553]
[1753931803655,4.20926981,180.12,180.08,1.9503553]
[1753931803853,1.9503553,180.13,180.08,1.9503553]
[1753931804155,4.20926981,180.12,180.08,1.9503553]
[1753931804353,73.0496447,180.0,179.99,7.0]
[1753931804543,1.9503553,180.12,179.99,8.9503553]
[1753931804747,1.9503553,180.12,180.07,1.9503553]
[1753931807853,1.9503553,180.12,180.02,196.66621479]
[1753931808056,1.9503553,180.12,180.07,1.9503553]
[1753931808255,4.20659764,180.11,180.07,1.9503553]
[1753931808556,1.9503553,180.12,180.07,1.9503553]
[1753931808755,4.20599746,180.11,180.07,1.9503553]
[1753931808960,1.9503553,180.12,180.07,1.9503553]
[1753931809155,4.20599746,180.11,180.07,1.9503553]
[1753931809355,1.9503553,180.12,180.07,1.9503553]
[1753931809556,4.2055439,180.11,180.07,1.9503553]
[1753931809757,1.9503553,180.12,180.07,1.9503553]
[1753931810058,4.2055439,180.11,180.07,1.9503553]
[1753931810260,1.9503553,180.12,180.07,1.9503553]
[1753931810462,4.20522705,180.11,180.07,1.9503553]
[1753931810663,1.9503553,180.12,180.07,1.9503553]
[1753931810862,4.20522705,180.11,180.07,1.9503553]
[1753931811162,1.9503553,180.12,180.07,1.9503553]
[1753931811457,4.20522705,180.11,180.07,1.9503553]
[1753931811661,1.9503553,180.12,180.02,196.66621479]
[1753931811861,4.2050405,180.11,180.07,1.9503553]
[1753931812062,1.9503553,180.12,180.07,1.9503553]
[1753931812262,1.9503553,180.1,180.05,1.9503553]
[1753931814964,1.9503553,180.1,180.07,1.9503553]
[1753931815366,1.9503553,180.12,180.07,1.9503553]
[1753931815665,1.9503553,180.12,180.02,196.66621479]
[1753931815865,1.9503553,180.12,180.08,1.9503553]
[1753931821876,1.9503553,180.12,180.02,196.66621479]
[1753931822068,1.9503553,180.12,180.08,1.9503553]
[1753931823275,1.9503553,180.12,180.02,196.66621479]
[1753931823773,1.9503553,180.12,180.08,1.9503553]
[1753931824976,4.67030553,180.16,180.02,196.66621479]
[1753931825172,4.20981552,180.15,180.07,1.9503553]
[1753931825379,1.9503553,180.12,180.07,1.9503553]
[1753931825573,1.9503553,180.13,180.09,1.9503553]
[1753931825773,4.2098573,180.12,180.09,1.9503553]
[1753931825974,1.9503553,180.13,180.09,1.9503553]
[1753931826272,4.2098573,180.12,180.09,1.9503553]
[1753931826468,1.9503553,180.14,180.09,1.9503553]
[1753931826775,4.67030553,180.18,180.11,1.9503553]
[1753931826973,1.9503553,180.16,180.11,1.9503553]
[1753931827170,4.20934373,180.15,180.11,1.9503553]
[1753931827372,4.20934373,180.14,180.11,1.9503553]
[1753931827575,1.9503553,180.16,180.11,1.9503553]
[1753931827780,4.20967805,180.15,180.11,1.9503553]
[1753931828077,4.20967805,180.14,180.11,1.9503553]
[1753931828280,1.9503553,180.16,180.11,1.9503553]
[1753931828479,4.209919,180.15,180.11,1.9503553]
[1753931828697,4.209919,180.14,180.11,1.9503553]
[1753931828981,1.9503553,180.16,180.11,1.9503553]
[1753931829277,4.21003401,180.15,180.11,1.9503553]
[1753931829476,1.9503553,180.18,180.13,1.9503553]
[1753931829677,4.21021161,180.17,180.13,1.9503553]
[1753931829877,4.21021161,180.16,180.13,1.9503553]
[1753931830073,1.9503553,180.18,180.13,1.9503553]
[1753931830281,4.21006621,180.17,180.13,1.9503553]
[1753931830483,4.21006621,180.16,180.13,1.9503553]
[1753931830670,4.21006621,180.15,180.13,1.9503553]
[1753931830871,1.9503553,180.18,180.13,1.9503553]
[1753931831074,4.21012142,180.17,180.13,1.9503553]
[1753931831279,1.9503553,180.18,180.13,1.9503553]
[1753931831280,4.21012142,180.16,180.13,1.9503553]
[1753931831480,1.9503553,180.18,180.13,1.9503553]
[1753931831681,4.21066268,180.17,180.13,1.9503553]
[1753931831881,4.21066268,180.16,180.13,1.9503553]
[1753931832082,1.9503553,180.18,180.13,1.9503553]
[1753931832279,4.21066268,180.17,180.13,1.9503553]
[1753931832481,4.21066268,180.16,180.13,1.9503553]
[1753931832780,1.9503553,180.18,180.13,1.9503553]
[1753931832976,4.21132139,180.17,180.13,1.9503553]
[1753931833183,4.21132139,180.16,180.02,203.66621479]
[1753931833384,1.9503553,180.18,180.02,203.66621479]
[1753931833582,4.21215753,180.17,180.12,1.9503553]
[1753931833777,4.21215753,180.16,180.12,1.9503553]
[1753931834085,1.9503553,180.18,180.12,1.9503553]
[1753931834285,4.2120848,180.17,180.12,1.9503553]
[1753931834582,4.2120848,180.16,180.12,1.9503553]
[1753931834881,4.2120848,180.15,180.12,1.9503553]
[1753931835080,1.9503553,180.18,180.12,1.9503553]
[1753931835284,4.21278991,180.17,180.12,1.9503553]
[1753931835481,4.21278991,180.16,180.12,1.9503553]
[1753931835681,4.21278991,180.15,180.12,1.9503553]
[1753931835879,1.9503553,180.18,180.12,1.9503553]
[1753931836086,4.21353875,180.17,180.12,1.9503553]
[1753931836384,4.21353875,180.16,180.12,1.9503553]
[1753931836585,1.9503553,180.18,180.12,1.9503553]
[1753931836887,4.21405765,180.17,180.12,1.9503553]
[1753931837185,4.21405765,180.16,180.12,1.9503553]
[1753931837387,4.21405765,180.15,180.12,1.9503553]
[1753931838084,4.21405765,180.15,180.02,203.66621479]
[1753931838284,4.21405765,180.15,180.11,1.9503553]
[1753931838888,4.21405765,180.15,180.02,203.66621479]
[1753931839088,4.21405765,180.15,180.1,1.9503553]
[1753931841889,4.21405765,180.15,180.02,203.66621479]
[1753931842089,1.9503553,180.14,180.1,1.9503553]
[1753931842388,4.21405765,180.13,180.1,1.9503553]
[1753931845389,4.21405765,180.12,180.1,1.9503553]
[1753931845588,4.67030553,180.16,180.1,1.9503553]
[1753931845790,4.21850575,180.15,180.13,1.9503553]
[1753931845993,4.21850575,180.14,180.13,1.9503553]
[1753931846689,6.62066083,180.19,180.13,1.9503553]
[1753931846889,4.21784999,180.18,180.15,1.9503553]
[1753931847089,4.21784999,180.17,180.15,1.9503553]
[1753931847289,4.21784999,180.16,180.15,1.9503553]
[1753931848794,4.21784999,180.16,180.13,3.05039206]
[1753931848994,4.67030553,180.2,180.13,3.05039206]
[1753931849294,4.21490122,180.19,180.15,3.05039206]
[1753931849492,4.21490122,180.18,180.15,3.05039206]
[1753931849692,4.21490122,180.17,180.15,3.05039206]
[1753931849892,4.67030553,180.22,180.15,3.05039206]
[1753931850195,4.21399212,180.21,180.15,3.05039206]
[1753931850396,4.21399212,180.2,180.15,3.05039206]
[1753931850591,4.21399212,180.19,180.15,3.05039206]
[1753931850793,4.21399212,180.18,180.15,3.05039206]
[1753931850994,4.67030553,180.22,180.15,3.05039206]
[1753931851194,4.21298031,180.21,180.15,3.05039206]
[1753931851388,4.21298031,180.2,180.15,3.05039206]
[1753931851592,4.21298031,180.19,180.15,3.05039206]
[1753931851791,4.21298031,180.18,180.15,3.05039206]
[1753931851992,4.67030553,180.22,180.15,3.05039206]
[1753931852190,4.21209722,180.21,180.15,3.05039206]
[1753931852392,4.21209722,180.2,180.15,3.05039206]
[1753931852690,4.21209722,180.19,180.15,3.05039206]
[1753931852886,4.21209722,180.18,180.15,3.05039206]
[1753931853099,4.67030553,180.22,180.15,3.05039206]
[1753931853298,4.21136245,180.21,180.15,3.05039206]
[1753931853592,4.21136245,180.2,180.15,3.05039206]
[1753931853787,4.21136245,180.19,180.15,3.05039206]